[Event "Late-Titled-Tuesday-Blitz-October-24-2023"]
[Site "Chess.com"]
[Date "2023.10.24"]
[Round "5"]
[White "Zhbugnoimt"]
[Black "Balla_Tamas"]
[Result "1-0"]
[WhiteElo "2544"]
[BlackElo "2338"]
[TimeControl "180+1"]
[EndTime "14:51:27 PDT"]
[Termination "Zhbugnoimt won by resignation"]

1. e4 {[%clk 0:03:00.9]} 1... c5 {[%clk 0:02:59.9]} 2. Nf3 {[%clk 0:03:01]} 2...
Nc6 {[%clk 0:03:00.3]} 3. Bb5 {[%clk 0:03:00.7]} 3... Nf6 {[%clk 0:02:59.2]} 4.
e5 {[%clk 0:02:56.1]} 4... Nd5 {[%clk 0:02:58.2]} 5. O-O {[%clk 0:02:56.7]} 5...
g6 {[%clk 0:02:56.6]} 6. Re1 {[%clk 0:02:38.1]} 6... Bg7 {[%clk 0:02:53.7]} 7.
d3 {[%clk 0:02:31]} 7... O-O {[%clk 0:02:51.6]} 8. Nbd2 {[%clk 0:02:30.7]} 8...
Nc7 {[%clk 0:02:50.6]} 9. Bxc6 {[%clk 0:02:30.4]} 9... dxc6 {[%clk 0:02:51.5]}
10. Ne4 {[%clk 0:02:30.1]} 10... b6 {[%clk 0:02:47.8]} 11. a4 {[%clk 0:02:28.4]}
11... a5 {[%clk 0:02:47.4]} 12. Be3 {[%clk 0:02:26.5]} 12... Bf5 {[%clk
0:02:46]} 13. Ng3 {[%clk 0:02:22.6]} 13... Be6 {[%clk 0:02:44.4]} 14. Qd2 {[%clk
0:02:21.9]} 14... Qd7 {[%clk 0:02:13.1]} 15. Bh6 {[%clk 0:02:20]} 15... Ne8
{[%clk 0:02:11.5]} 16. h3 {[%clk 0:02:11]} 16... Bxh6 {[%clk 0:02:09.6]} 17.
Qxh6 {[%clk 0:02:10.7]} 17... Ng7 {[%clk 0:02:09.7]} 18. Ng5 {[%clk 0:02:10.6]}
1-0

[Event "Late-Titled-Tuesday-Blitz-October-24-2023"]
[Site "Chess.com"]
[Date "2023.10.24"]
[Round "5"]
[White "ellatambien"]
[Black "kleinebeer98"]
[Result "1/2-1/2"]
[WhiteElo "2650"]
[BlackElo "2864"]
[TimeControl "180+1"]
[EndTime "14:52:37 PDT"]
[Termination "Game drawn by repetition"]

1. e4 {[%clk 0:03:00.9]} 1... e5 {[%clk 0:03:00]} 2. Nf3 {[%clk 0:03:00.6]} 2...
Nc6 {[%clk 0:03:00.8]} 3. Nc3 {[%clk 0:02:59.8]} 3... f5 {[%clk 0:03:00.9]} 4.
d4 {[%clk 0:02:53.7]} 4... fxe4 {[%clk 0:03:01.5]} 5. Nxe5 {[%clk 0:02:51.4]}
5... Nf6 {[%clk 0:03:02.2]} 6. Bg5 {[%clk 0:02:40.9]} 6... Bb4 {[%clk
0:03:01.4]} 7. Be2 {[%clk 0:02:35.9]} 7... d6 {[%clk 0:02:58.8]} 8. Nxc6 {[%clk
0:02:30.9]} 8... bxc6 {[%clk 0:02:59.7]} 9. O-O {[%clk 0:02:30.8]} 9... Bxc3
{[%clk 0:03:00.2]} 10. bxc3 {[%clk 0:02:29.3]} 10... O-O {[%clk 0:03:00.8]} 11.
f3 {[%clk 0:02:22.1]} 11... Bf5 {[%clk 0:03:00.9]} 12. fxe4 {[%clk 0:02:18.4]}
12... Bxe4 {[%clk 0:03:01.8]} 13. Qd2 {[%clk 0:02:18.5]} 13... h6 {[%clk
0:02:59.8]} 14. Bh4 {[%clk 0:02:16]} 14... d5 {[%clk 0:02:57.9]} 15. Rf2 {[%clk
0:02:13.2]} 15... Qd6 {[%clk 0:02:56.7]} 16. Bg3 {[%clk 0:02:12.1]} 16... Qe6
{[%clk 0:02:55.1]} 17. Raf1 {[%clk 0:02:11.4]} 17... Rf7 {[%clk 0:02:54.9]} 18.
h3 {[%clk 0:02:09.5]} 18... Raf8 {[%clk 0:02:54]} 19. Be5 {[%clk 0:02:08.6]}
19... Bg6 {[%clk 0:02:45.7]} 20. Bd3 {[%clk 0:02:03.4]} 20... Ne4 {[%clk
0:02:43.5]} 21. Bxe4 {[%clk 0:02:02.8]} 21... Bxe4 {[%clk 0:02:44.4]} 22. Rxf7
{[%clk 0:02:01.5]} 22... Rxf7 {[%clk 0:02:45.3]} 23. Rxf7 {[%clk 0:02:01.4]}
23... Qxf7 {[%clk 0:02:46.2]} 24. Qf4 {[%clk 0:02:01.3]} 24... Qg6 {[%clk
0:02:45]} 25. Qg3 {[%clk 0:01:59.8]} 25... Bxc2 {[%clk 0:02:42.5]} 26. Qxg6
{[%clk 0:01:57.3]} 26... Bxg6 {[%clk 0:02:43.4]} 27. Bxc7 {[%clk 0:01:57.5]}
27... Bb1 {[%clk 0:02:44]} 28. a3 {[%clk 0:01:57.4]} 28... Kf7 {[%clk
0:02:44.3]} 29. Kf2 {[%clk 0:01:57.9]} 29... Ke6 {[%clk 0:02:44.5]} 30. Ke3
{[%clk 0:01:58.3]} 30... h5 {[%clk 0:02:44.5]} 31. Kf4 {[%clk 0:01:58.1]} 31...
Kf6 {[%clk 0:02:41.9]} 32. Be5+ {[%clk 0:01:55.6]} 32... Kg6 {[%clk 0:02:42.1]}
33. g4 {[%clk 0:01:54.9]} 33... hxg4 {[%clk 0:02:40.7]} 34. hxg4 {[%clk
0:01:55.2]} 34... Bc2 {[%clk 0:02:41.6]} 35. Kg3 {[%clk 0:01:50.5]} 35... a5
{[%clk 0:02:41.8]} 36. Bc7 {[%clk 0:01:49]} 36... a4 {[%clk 0:02:42.1]} 37. Be5
{[%clk 0:01:49.3]} 37... Kf7 {[%clk 0:02:41.2]} 38. Kf4 {[%clk 0:01:49.4]} 38...
Bd1 {[%clk 0:02:41.3]} 39. Kg5 {[%clk 0:01:46.1]} 39... g6 {[%clk 0:02:40]} 40.
Kf4 {[%clk 0:01:45]} 40... Ke6 {[%clk 0:02:40.4]} 41. g5 {[%clk 0:01:44]} 41...
Kd7 {[%clk 0:02:38.4]} 42. Bf6 {[%clk 0:01:43.4]} 42... Kc7 {[%clk 0:02:37.7]}
43. Be7 {[%clk 0:01:42.8]} 43... Kb6 {[%clk 0:02:38.3]} 44. Ke5 {[%clk
0:01:38.7]} 44... Kb5 {[%clk 0:02:39.2]} 45. Bb4 {[%clk 0:01:38.3]} 45... Kc4
{[%clk 0:02:39.5]} 46. Kd6 {[%clk 0:01:38.1]} 46... Kb5 {[%clk 0:02:38.8]} 47.
Ke5 {[%clk 0:01:38.2]} 47... Bc2 {[%clk 0:02:39.4]} 48. Kf6 {[%clk 0:01:38]}
48... Kc4 {[%clk 0:02:39.8]} 49. Ke5 {[%clk 0:01:38.3]} 49... Bf5 {[%clk
0:02:39.5]} 50. Kd6 {[%clk 0:01:38.4]} 50... Kb5 {[%clk 0:02:39.9]} 51. Ke7
{[%clk 0:01:38.4]} 51... Kb6 {[%clk 0:02:40.1]} 52. Kd6 {[%clk 0:01:38.4]} 52...
Kb7 {[%clk 0:02:40.7]} 53. Ke7 {[%clk 0:01:38.8]} 53... Kc7 {[%clk 0:02:41.5]}
54. Kf6 {[%clk 0:01:38.9]} 54... Kd7 {[%clk 0:02:41.7]} 55. Ke5 {[%clk
0:01:39.2]} 55... Bb1 {[%clk 0:02:41.3]} 56. Bc5 {[%clk 0:01:38.9]} 56... Bc2
{[%clk 0:02:40.4]} 57. Bb4 {[%clk 0:01:39]} 57... Bb1 {[%clk 0:02:41.2]} 58. Bc5
{[%clk 0:01:39.1]} 58... Bc2 {[%clk 0:02:42]} 59. Bb4 {[%clk 0:01:39.5]} 59...
Bb1 {[%clk 0:02:42.6]} 1/2-1/2

[Event "Late-Titled-Tuesday-Blitz-October-24-2023"]
[Site "Chess.com"]
[Date "2023.10.24"]
[Round "5"]
[White "Cryptochess"]
[Black "WindWhistler11"]
[Result "1-0"]
[WhiteElo "2616"]
[BlackElo "2429"]
[TimeControl "180+1"]
[EndTime "14:52:37 PDT"]
[Termination "Cryptochess won by resignation"]

1. e4 {[%clk 0:02:49.8]} 1... e6 {[%clk 0:02:59.6]} 2. d4 {[%clk 0:02:49.7]}
2... d5 {[%clk 0:03:00]} 3. Nc3 {[%clk 0:02:50.5]} 3... Bb4 {[%clk 0:02:59.8]}
4. exd5 {[%clk 0:02:46.8]} 4... exd5 {[%clk 0:02:59.6]} 5. Bd3 {[%clk
0:02:47.5]} 5... Ne7 {[%clk 0:02:59.7]} 6. Qf3 {[%clk 0:02:48]} 6... Nbc6 {[%clk
0:02:58.6]} 7. Ne2 {[%clk 0:02:48.4]} 7... Be6 {[%clk 0:02:59]} 8. Bf4 {[%clk
0:02:48.7]} 8... Qd7 {[%clk 0:02:58.4]} 9. O-O-O {[%clk 0:02:48.6]} 9... O-O-O
{[%clk 0:02:51.7]} 10. h3 {[%clk 0:02:38.7]} 10... Kb8 {[%clk 0:02:41.8]} 11. g4
{[%clk 0:02:37.3]} 11... Nc8 {[%clk 0:02:38.2]} 12. Qg3 {[%clk 0:02:34.1]} 12...
Ba5 {[%clk 0:02:27.2]} 13. Kb1 {[%clk 0:02:27.4]} 13... Nb4 {[%clk 0:02:16.7]}
14. Bb5 {[%clk 0:02:23.4]} 14... Nc6 {[%clk 0:02:08.1]} 15. Na4 {[%clk
0:02:20.9]} 15... Bb6 {[%clk 0:02:01]} 16. Nc5 {[%clk 0:02:19.6]} 16... Bxc5
{[%clk 0:01:58.1]} 17. dxc5 {[%clk 0:02:20.5]} 17... a6 {[%clk 0:01:48.4]} 18.
Ba4 {[%clk 0:02:20]} 18... N8a7 {[%clk 0:01:36.7]} 19. Nd4 {[%clk 0:02:19.3]}
19... Rhe8 {[%clk 0:01:28.6]} 20. Rhe1 {[%clk 0:02:13.7]} 20... f6 {[%clk
0:01:25.5]} 21. Nxe6 {[%clk 0:02:11.7]} 21... Rxe6 {[%clk 0:00:59.5]} 22. Rxe6
{[%clk 0:02:10.5]} 22... Qxe6 {[%clk 0:00:59.7]} 23. Bxc7+ {[%clk 0:02:10.8]}
1-0

[Event "Late-Titled-Tuesday-Blitz-October-24-2023"]
[Site "Chess.com"]
[Date "2023.10.24"]
[Round "5"]
[White "UK_23"]
[Black "meoluoi91"]
[Result "0-1"]
[WhiteElo "2404"]
[BlackElo "2598"]
[TimeControl "180+1"]
[EndTime "14:52:48 PDT"]
[Termination "meoluoi91 won by resignation"]

1. e4 {[%clk 0:02:54.6]} 1... c6 {[%clk 0:02:56.1]} 2. Nc3 {[%clk 0:02:54.1]}
2... d5 {[%clk 0:02:55.4]} 3. Nf3 {[%clk 0:02:55]} 3... Bg4 {[%clk 0:02:52.9]}
4. h3 {[%clk 0:02:54.1]} 4... Bxf3 {[%clk 0:02:52.7]} 5. Qxf3 {[%clk 0:02:55]}
5... e6 {[%clk 0:02:52.1]} 6. Be2 {[%clk 0:02:53.2]} 6... Nf6 {[%clk 0:02:51.6]}
7. O-O {[%clk 0:02:52.3]} 7... Bb4 {[%clk 0:02:51.2]} 8. exd5 {[%clk 0:02:37.4]}
8... cxd5 {[%clk 0:02:44.3]} 9. d4 {[%clk 0:02:32.9]} 9... Nc6 {[%clk
0:02:42.8]} 10. Rd1 {[%clk 0:02:25.5]} 10... O-O {[%clk 0:02:42.1]} 11. Bg5
{[%clk 0:02:19.2]} 11... Rc8 {[%clk 0:02:38.8]} 12. Na4 {[%clk 0:02:10]} 12...
Be7 {[%clk 0:02:36.4]} 13. Nc5 {[%clk 0:01:51.1]} 13... Nxd4 {[%clk 0:02:29]}
14. Rxd4 {[%clk 0:01:50.2]} 14... Rxc5 {[%clk 0:02:21.4]} 15. Bd3 {[%clk
0:01:49.6]} 15... e5 {[%clk 0:02:15.9]} 16. Rh4 {[%clk 0:01:33.2]} 16... e4
{[%clk 0:02:08.7]} 17. Qf5 {[%clk 0:01:21.7]} 17... d4 {[%clk 0:01:40.2]} 0-1

[Event "Late-Titled-Tuesday-Blitz-October-24-2023"]
[Site "Chess.com"]
[Date "2023.10.24"]
[Round "5"]
[White "Road2GM3000"]
[Black "yuki_chess123"]
[Result "1-0"]
[WhiteElo "2367"]
[BlackElo "2119"]
[TimeControl "180+1"]
[EndTime "14:52:48 PDT"]
[Termination "Road2GM3000 won by resignation"]

1. d4 {[%clk 0:02:59.9]} 1... d5 {[%clk 0:02:59]} 2. c4 {[%clk 0:02:58.7]} 2...
e6 {[%clk 0:02:59.6]} 3. cxd5 {[%clk 0:02:58.7]} 3... exd5 {[%clk 0:02:58.2]} 4.
Nc3 {[%clk 0:02:59.2]} 4... Nf6 {[%clk 0:02:57.3]} 5. Nf3 {[%clk 0:02:59.5]}
5... Be7 {[%clk 0:02:54.5]} 6. Bg5 {[%clk 0:02:59.8]} 6... O-O {[%clk
0:02:52.4]} 7. e3 {[%clk 0:03:00.2]} 7... Nbd7 {[%clk 0:02:44.4]} 8. Bd3 {[%clk
0:03:00.1]} 8... Re8 {[%clk 0:02:39.8]} 9. Qc2 {[%clk 0:02:59.1]} 9... Nf8
{[%clk 0:02:39.4]} 10. O-O {[%clk 0:02:59.1]} 10... c6 {[%clk 0:02:31.3]} 11.
Ne5 {[%clk 0:02:58.8]} 11... Nh5 {[%clk 0:02:22.2]} 12. Bxe7 {[%clk 0:02:58.3]}
12... Qxe7 {[%clk 0:02:21.9]} 13. Rae1 {[%clk 0:02:57.3]} 13... g6 {[%clk
0:02:06.2]} 14. f4 {[%clk 0:02:37.4]} 14... f6 {[%clk 0:01:51.1]} 15. Nxg6
{[%clk 0:02:34.3]} 15... hxg6 {[%clk 0:01:50.6]} 16. Bxg6 {[%clk 0:02:35.2]}
16... Nxg6 {[%clk 0:01:49.8]} 17. Qxg6+ {[%clk 0:02:36.1]} 17... Ng7 {[%clk
0:01:49.8]} 18. e4 {[%clk 0:02:34]} 18... Qf7 {[%clk 0:01:46.6]} 19. Qg3 {[%clk
0:02:14.2]} 19... dxe4 {[%clk 0:01:37.3]} 20. Nxe4 {[%clk 0:02:04.9]} 20... Rxe4
{[%clk 0:01:35.4]} 21. Rxe4 {[%clk 0:02:04.5]} 21... Bf5 {[%clk 0:01:35.8]} 22.
Re3 {[%clk 0:01:56.8]} 22... Qd5 {[%clk 0:01:30.5]} 23. Re7 {[%clk 0:01:49.2]}
23... Qxd4+ {[%clk 0:01:24.4]} 24. Kh1 {[%clk 0:01:49]} 24... Bg4 {[%clk
0:01:16.1]} 25. Qxg4 {[%clk 0:01:45.4]} 25... f5 {[%clk 0:01:16.7]} 26. Qg6
{[%clk 0:01:34.5]} 1-0

[Event "Late-Titled-Tuesday-Blitz-October-24-2023"]
[Site "Chess.com"]
[Date "2023.10.24"]
[Round "5"]
[White "KATPAH"]
[Black "whiteglovethief"]
[Result "1-0"]
[WhiteElo "2645"]
[BlackElo "2522"]
[TimeControl "180+1"]
[EndTime "14:53:19 PDT"]
[Termination "KATPAH won by resignation"]

1. e4 {[%clk 0:03:00]} 1... e6 {[%clk 0:02:57.4]} 2. d4 {[%clk 0:03:00]} 2... d5
{[%clk 0:02:58]} 3. exd5 {[%clk 0:03:00.2]} 3... exd5 {[%clk 0:02:57.9]} 4. c4
{[%clk 0:03:01.1]} 4... Bb4+ {[%clk 0:02:57.7]} 5. Nc3 {[%clk 0:03:01.4]} 5...
Nf6 {[%clk 0:02:57.9]} 6. Nf3 {[%clk 0:03:02.1]} 6... O-O {[%clk 0:02:58.1]} 7.
Be2 {[%clk 0:03:02.8]} 7... dxc4 {[%clk 0:02:58.5]} 8. Bxc4 {[%clk 0:03:03.7]}
8... Bg4 {[%clk 0:02:55.5]} 9. Be3 {[%clk 0:03:01.9]} 9... Nc6 {[%clk
0:02:55.2]} 10. O-O {[%clk 0:03:02.3]} 10... h6 {[%clk 0:02:51.1]} 11. h3 {[%clk
0:03:01.6]} 11... Bf5 {[%clk 0:02:49.1]} 12. Ne5 {[%clk 0:03:00.5]} 12... Nxe5
{[%clk 0:02:45]} 13. dxe5 {[%clk 0:03:01.4]} 13... Qxd1 {[%clk 0:02:43]} 14.
Raxd1 {[%clk 0:03:02.3]} 14... Bxc3 {[%clk 0:02:41.3]} 15. bxc3 {[%clk
0:03:00.4]} 15... Ne4 {[%clk 0:02:41.1]} 16. Bd3 {[%clk 0:02:56]} 16... Bh7
{[%clk 0:02:33.8]} 17. Bd4 {[%clk 0:02:53.9]} 17... Rfd8 {[%clk 0:02:24.6]} 18.
Rfe1 {[%clk 0:02:49.9]} 18... Ng5 {[%clk 0:02:16.2]} 19. Bc4 {[%clk 0:02:47.9]}
19... Ne6 {[%clk 0:02:12.9]} 20. Be3 {[%clk 0:02:47.3]} 20... Bc2 {[%clk
0:02:04.2]} 21. Rc1 {[%clk 0:02:45.4]} 21... Ba4 {[%clk 0:02:04.1]} 22. f4
{[%clk 0:02:45.6]} 22... a6 {[%clk 0:01:51.3]} 23. f5 {[%clk 0:02:44.6]} 23...
Ng5 {[%clk 0:01:49.1]} 24. h4 {[%clk 0:02:41.3]} 24... Nh7 {[%clk 0:01:32.9]}
25. e6 {[%clk 0:02:30.5]} 25... fxe6 {[%clk 0:01:32.3]} 26. fxe6 {[%clk
0:02:31.4]} 26... Re8 {[%clk 0:01:28.4]} 27. g4 {[%clk 0:02:23.3]} 27... Kh8
{[%clk 0:01:17.2]} 28. g5 {[%clk 0:02:21.8]} 28... Nf8 {[%clk 0:01:17.2]} 29.
Bd4 {[%clk 0:02:19.8]} 29... h5 {[%clk 0:01:10.2]} 30. e7 {[%clk 0:02:12]} 30...
Ng6 {[%clk 0:01:09.9]} 31. Bf7 {[%clk 0:02:12.4]} 31... Nxh4 {[%clk 0:01:09.1]}
32. Bxe8 {[%clk 0:02:10.1]} 32... Nf3+ {[%clk 0:01:08.4]} 33. Kf2 {[%clk
0:02:09]} 33... Nxe1 {[%clk 0:01:08.3]} 34. Bxa4 {[%clk 0:02:03.4]} 34... Nd3+
{[%clk 0:01:08.9]} 35. Ke3 {[%clk 0:02:02.1]} 35... Nxc1 {[%clk 0:01:09.3]} 36.
e8=R+ {[%clk 0:02:02.2]} 36... Rxe8+ {[%clk 0:01:09.7]} 37. Bxe8 {[%clk
0:02:03.1]} 37... Nxa2 {[%clk 0:01:09.8]} 38. Bxh5 {[%clk 0:02:01.8]} 38... Nc1
{[%clk 0:01:06.1]} 39. Bf7 {[%clk 0:02:01.5]} 1-0

[Event "Late-Titled-Tuesday-Blitz-October-24-2023"]
[Site "Chess.com"]
[Date "2023.10.24"]
[Round "5"]
[White "Nick12772"]
[Black "The_Sherman_Variation"]
[Result "0-1"]
[WhiteElo "2379"]
[BlackElo "2573"]
[TimeControl "180+1"]
[EndTime "14:53:28 PDT"]
[Termination "The_Sherman_Variation won by resignation"]

1. Nf3 {[%clk 0:03:00.9]} 1... e6 {[%clk 0:03:00.9]} 2. g3 {[%clk 0:03:01]} 2...
d5 {[%clk 0:03:00.9]} 3. Bg2 {[%clk 0:03:00.1]} 3... Nf6 {[%clk 0:03:01.8]} 4.
O-O {[%clk 0:03:00.4]} 4... Be7 {[%clk 0:03:02.7]} 5. d4 {[%clk 0:02:58.6]} 5...
O-O {[%clk 0:03:03.6]} 6. c4 {[%clk 0:02:59.1]} 6... dxc4 {[%clk 0:03:04.5]} 7.
Ne5 {[%clk 0:02:59]} 7... Nc6 {[%clk 0:03:04.1]} 8. Nxc6 {[%clk 0:02:59.3]} 8...
bxc6 {[%clk 0:03:05]} 9. Bxc6 {[%clk 0:02:59.6]} 9... Rb8 {[%clk 0:03:03.9]} 10.
Bg2 {[%clk 0:02:59.5]} 10... Bb7 {[%clk 0:03:02.8]} 11. Bxb7 {[%clk 0:02:58.9]}
11... Rxb7 {[%clk 0:03:03.7]} 12. e3 {[%clk 0:02:40.9]} 12... c5 {[%clk
0:03:03.5]} 13. dxc5 {[%clk 0:02:36]} 13... Bxc5 {[%clk 0:03:03.8]} 14. Nc3
{[%clk 0:02:22.2]} 14... Bb4 {[%clk 0:02:57.2]} 15. Bd2 {[%clk 0:02:16.4]} 15...
Rd7 {[%clk 0:02:55.9]} 16. Qa4 {[%clk 0:02:07.4]} 16... a5 {[%clk 0:02:48.8]}
17. a3 {[%clk 0:01:51.7]} 17... Rxd2 {[%clk 0:02:33.5]} 18. axb4 {[%clk
0:01:50.9]} 18... axb4 {[%clk 0:02:34.4]} 19. Qxb4 {[%clk 0:01:47.8]} 19... Qd3
{[%clk 0:02:35.3]} 20. Rad1 {[%clk 0:01:34.4]} 20... Rc8 {[%clk 0:02:29.4]} 21.
Rxd2 {[%clk 0:01:31.9]} 21... Qxd2 {[%clk 0:02:30.3]} 22. Rd1 {[%clk 0:01:29.3]}
22... Qc2 {[%clk 0:02:29.1]} 23. Qe7 {[%clk 0:01:12.8]} 23... h5 {[%clk
0:02:21.5]} 24. Rd8+ {[%clk 0:01:12.4]} 24... Rxd8 {[%clk 0:02:21.6]} 25. Qxd8+
{[%clk 0:01:13.3]} 25... Kh7 {[%clk 0:02:22.3]} 26. Qb6 {[%clk 0:01:00]} 26...
h4 {[%clk 0:02:20.7]} 27. Qd4 {[%clk 0:00:54.6]} 27... h3 {[%clk 0:02:20.5]} 28.
Qh4+ {[%clk 0:00:54.5]} 28... Kg8 {[%clk 0:02:15.3]} 29. Qxh3 {[%clk 0:00:54.9]}
29... Qxb2 {[%clk 0:02:15.2]} 30. Nd1 {[%clk 0:00:49.8]} 30... Qc1 {[%clk
0:02:08.5]} 31. Qf1 {[%clk 0:00:49.8]} 31... c3 {[%clk 0:02:09.2]} 32. Nxc3
{[%clk 0:00:42.4]} 32... Qxc3 {[%clk 0:02:10.1]} 33. h3 {[%clk 0:00:39.1]} 33...
Qe5 {[%clk 0:02:10]} 34. Kh2 {[%clk 0:00:37.1]} 34... Qh5 {[%clk 0:02:09.7]} 35.
Qd3 {[%clk 0:00:32.5]} 35... Ng4+ {[%clk 0:02:08.8]} 36. Kg2 {[%clk 0:00:30.3]}
36... Qxh3+ {[%clk 0:02:09.2]} 37. Kf3 {[%clk 0:00:25.8]} 37... Ne5+ {[%clk
0:02:09.3]} 0-1

[Event "Late-Titled-Tuesday-Blitz-October-24-2023"]
[Site "Chess.com"]
[Date "2023.10.24"]
[Round "5"]
[White "Schwindle"]
[Black "hellokostya"]
[Result "0-1"]
[WhiteElo "2418"]
[BlackElo "2611"]
[TimeControl "180+1"]
[EndTime "14:53:49 PDT"]
[Termination "hellokostya won by resignation"]

1. e4 {[%clk 0:02:57.7]} 1... c5 {[%clk 0:03:00.3]} 2. Nf3 {[%clk 0:02:57.6]}
2... Nc6 {[%clk 0:02:59.9]} 3. d4 {[%clk 0:02:57.7]} 3... cxd4 {[%clk
0:03:00.1]} 4. Nxd4 {[%clk 0:02:58.6]} 4... Nf6 {[%clk 0:03:00.5]} 5. Nc3 {[%clk
0:02:59]} 5... e5 {[%clk 0:03:00.8]} 6. Ndb5 {[%clk 0:02:58.9]} 6... d6 {[%clk
0:03:00.6]} 7. Bg5 {[%clk 0:02:59.1]} 7... a6 {[%clk 0:03:01.1]} 8. Bxf6 {[%clk
0:02:59]} 8... gxf6 {[%clk 0:03:00.2]} 9. Na3 {[%clk 0:02:59.3]} 9... b5 {[%clk
0:02:58.7]} 10. Nd5 {[%clk 0:02:59.7]} 10... Bg7 {[%clk 0:02:58.7]} 11. Bd3
{[%clk 0:02:57.5]} 11... Ne7 {[%clk 0:02:57.8]} 12. Nxe7 {[%clk 0:02:47.4]}
12... Qxe7 {[%clk 0:02:58.7]} 13. O-O {[%clk 0:02:47.3]} 13... O-O {[%clk
0:02:58.2]} 14. c4 {[%clk 0:02:47.1]} 14... f5 {[%clk 0:02:56.3]} 15. Qf3 {[%clk
0:02:38]} 15... f4 {[%clk 0:02:46.6]} 16. cxb5 {[%clk 0:02:33.3]} 16... axb5
{[%clk 0:02:44.6]} 17. Nxb5 {[%clk 0:02:33.7]} 17... Be6 {[%clk 0:02:41.4]} 18.
Nc3 {[%clk 0:02:28]} 18... Rfb8 {[%clk 0:02:36.4]} 19. b3 {[%clk 0:02:25]} 19...
Qg5 {[%clk 0:02:34.9]} 20. h3 {[%clk 0:02:23.4]} 20... Bf6 {[%clk 0:02:24.6]}
21. Bc4 {[%clk 0:02:13.6]} 21... Bxc4 {[%clk 0:02:08.5]} 22. bxc4 {[%clk
0:02:12.6]} 22... Ra3 {[%clk 0:02:09.3]} 23. Rab1 {[%clk 0:02:01.7]} 23... Rc8
{[%clk 0:02:07.1]} 24. Rb3 {[%clk 0:01:59.9]} 24... Ra6 {[%clk 0:01:58.6]} 25.
Nd5 {[%clk 0:01:57.5]} 25... Rxc4 {[%clk 0:01:55.4]} 26. Rb8+ {[%clk 0:01:45.2]}
26... Kg7 {[%clk 0:01:54.6]} 27. h4 {[%clk 0:01:25.8]} 27... Qxh4 {[%clk
0:01:49.9]} 28. g3 {[%clk 0:01:03.8]} 28... Qg5 {[%clk 0:01:44.5]} 29. Kg2
{[%clk 0:00:55.3]} 29... Rxa2 {[%clk 0:01:41.3]} 30. Nxf6 {[%clk 0:00:53.8]}
30... Kxf6 {[%clk 0:01:28.4]} 31. Qb3 {[%clk 0:00:47]} 31... Rcc2 {[%clk
0:01:22.3]} 0-1

[Event "Late-Titled-Tuesday-Blitz-October-24-2023"]
[Site "Chess.com"]
[Date "2023.10.24"]
[Round "5"]
[White "Atanejhad"]
[Black "zivicd"]
[Result "1-0"]
[WhiteElo "2389"]
[BlackElo "2112"]
[TimeControl "180+1"]
[EndTime "14:53:58 PDT"]
[Termination "Atanejhad won by resignation"]

1. d4 {[%clk 0:03:00.9]} 1... Nf6 {[%clk 0:02:58.9]} 2. c4 {[%clk 0:03:01.5]}
2... e6 {[%clk 0:02:56.8]} 3. Nf3 {[%clk 0:02:58.9]} 3... Bb4+ {[%clk
0:02:55.1]} 4. Bd2 {[%clk 0:02:58.5]} 4... Qe7 {[%clk 0:02:52.4]} 5. g3 {[%clk
0:02:56.3]} 5... b6 {[%clk 0:02:52]} 6. Bg2 {[%clk 0:02:55.1]} 6... Bb7 {[%clk
0:02:52.2]} 7. O-O {[%clk 0:02:54.1]} 7... Bxd2 {[%clk 0:02:51.1]} 8. Nbxd2
{[%clk 0:02:53.2]} 8... O-O {[%clk 0:02:50.4]} 9. Qc2 {[%clk 0:02:53.6]} 9... d6
{[%clk 0:02:50]} 10. e4 {[%clk 0:02:51.3]} 10... e5 {[%clk 0:02:49.7]} 11. d5
{[%clk 0:02:52]} 11... a5 {[%clk 0:02:49]} 12. Ne1 {[%clk 0:02:52.4]} 12... Nbd7
{[%clk 0:02:44.8]} 13. Nd3 {[%clk 0:02:52.7]} 13... Nc5 {[%clk 0:02:40.1]} 14.
b3 {[%clk 0:02:43.1]} 14... Nxd3 {[%clk 0:02:37.6]} 15. Qxd3 {[%clk 0:02:42.3]}
15... Nd7 {[%clk 0:02:38.5]} 16. a3 {[%clk 0:02:34.6]} 16... Nc5 {[%clk
0:02:30]} 17. Qc2 {[%clk 0:02:22.1]} 17... f5 {[%clk 0:02:07.2]} 18. exf5 {[%clk
0:02:19.2]} 18... Bc8 {[%clk 0:02:06.9]} 19. g4 {[%clk 0:02:17.4]} 19... h5
{[%clk 0:01:57.8]} 20. f3 {[%clk 0:02:15.4]} 20... Bd7 {[%clk 0:01:50.6]} 21. b4
{[%clk 0:02:06.8]} 21... Na6 {[%clk 0:01:38.3]} 22. Qc3 {[%clk 0:01:59.2]} 22...
Qh4 {[%clk 0:01:25.5]} 23. h3 {[%clk 0:01:54.2]} 23... g6 {[%clk 0:01:20.9]} 24.
fxg6 {[%clk 0:01:53]} 24... Kg7 {[%clk 0:01:11.9]} 25. Ne4 {[%clk 0:01:48.4]}
25... Rf4 {[%clk 0:01:07]} 26. Qe1 {[%clk 0:01:39.8]} 26... Qe7 {[%clk
0:01:02.8]} 27. gxh5 {[%clk 0:01:25.4]} 27... Rh8 {[%clk 0:01:01.5]} 28. Ng3
{[%clk 0:01:25.8]} 28... Rh4 {[%clk 0:00:50.1]} 29. f4 {[%clk 0:01:22.5]} 29...
Bxh3 {[%clk 0:00:44.8]} 30. fxe5 {[%clk 0:01:22.1]} 30... dxe5 {[%clk
0:00:40.9]} 31. Rf7+ {[%clk 0:01:20.4]} 1-0

[Event "Late-Titled-Tuesday-Blitz-October-24-2023"]
[Site "Chess.com"]
[Date "2023.10.24"]
[Round "5"]
[White "TimGrutter03"]
[Black "randy296"]
[Result "1-0"]
[WhiteElo "2527"]
[BlackElo "2056"]
[TimeControl "180+1"]
[EndTime "14:53:58 PDT"]
[Termination "TimGrutter03 won by resignation"]

1. e4 {[%clk 0:02:59.2]} 1... c5 {[%clk 0:02:59.2]} 2. Nf3 {[%clk 0:02:58.7]}
2... d6 {[%clk 0:02:59.1]} 3. b3 {[%clk 0:02:58.8]} 3... Nc6 {[%clk 0:02:58.4]}
4. Bb2 {[%clk 0:02:58.6]} 4... Nf6 {[%clk 0:02:58.5]} 5. Nc3 {[%clk 0:02:48.3]}
5... e6 {[%clk 0:02:38.6]} 6. g3 {[%clk 0:02:45.5]} 6... Be7 {[%clk 0:02:38.6]}
7. Bg2 {[%clk 0:02:45.9]} 7... O-O {[%clk 0:02:38.4]} 8. O-O {[%clk 0:02:46.5]}
8... d5 {[%clk 0:02:30.5]} 9. exd5 {[%clk 0:02:43.3]} 9... exd5 {[%clk
0:02:28.6]} 10. d4 {[%clk 0:02:36.9]} 10... Bg4 {[%clk 0:02:19.6]} 11. dxc5
{[%clk 0:02:31]} 11... Bxc5 {[%clk 0:02:16.6]} 12. h3 {[%clk 0:02:28.9]} 12...
Bf5 {[%clk 0:02:07.8]} 13. g4 {[%clk 0:02:25.5]} 13... Be4 {[%clk 0:02:06.3]}
14. Nxe4 {[%clk 0:02:22.8]} 14... dxe4 {[%clk 0:01:51.8]} 15. Ne5 {[%clk
0:02:22.6]} 15... Qb6 {[%clk 0:01:30.9]} 16. Nc4 {[%clk 0:02:16.7]} 16... Qc7
{[%clk 0:01:25.3]} 17. Bxf6 {[%clk 0:02:15.6]} 17... gxf6 {[%clk 0:01:24.1]} 18.
Bxe4 {[%clk 0:02:14.6]} 18... Ne5 {[%clk 0:01:19]} 19. Nxe5 {[%clk 0:02:06.5]}
19... fxe5 {[%clk 0:01:18.5]} 20. Qf3 {[%clk 0:02:06.2]} 20... Bd4 {[%clk
0:01:13.6]} 21. Rad1 {[%clk 0:01:55.4]} 21... Rab8 {[%clk 0:01:08.4]} 22. Qf5
{[%clk 0:01:45.5]} 22... f6 {[%clk 0:01:08.4]} 23. c3 {[%clk 0:01:45.5]} 23...
Rf7 {[%clk 0:00:39.6]} 24. cxd4 {[%clk 0:01:38.3]} 24... Rg7 {[%clk 0:00:39.6]}
25. dxe5 {[%clk 0:01:33.6]} 25... fxe5 {[%clk 0:00:32.5]} 26. Rc1 {[%clk
0:01:33.3]} 26... Qe7 {[%clk 0:00:31.1]} 27. Rc8+ {[%clk 0:01:31.4]} 27... Rxc8
{[%clk 0:00:31.4]} 28. Qxc8+ {[%clk 0:01:31.7]} 28... Kf7 {[%clk 0:00:31.7]} 29.
Bd5+ {[%clk 0:01:30.1]} 1-0